Cogmind - Beta 16 @@@ ROGUE MODE // 2025.12.01 @ 19:38:40 Player: GLC Result: Destroyed by P-60 Hacker with Shock Rifle Performance ------------- Evolutions (3) 1500 Regions Visited (6) 1200 Robots Destroyed (47) 235 Value Destroyed (891) 891 Prototype IDs (1) 20 Alien Tech Used (0) 0 Bonus (300) 300 TOTAL SCORE: 4146 Bonus ------- Aligned with FarCom 300 Cogmind --------- Core Integrity 0/700 Matter 256/300 Energy 23/100 System Corruption 5% Temperature Cool (0) Movement Core (50) Location -7/Factory Parts ------- > --- POWER (2) -------- (None) > --- PROPULSION (4) --- (None) > --- UTILITY (4) ------ Advanced Weight Redist. System > --- WEAPON (3) ------- Powered Hammer > --- INVENTORY (5) ---- Medium Treads Reflective Plating Datajack Peak State ------------ > --- POWER ------------ Light Ion Engine > --- PROPULSION ------- Medium Treads Medium Treads Medium Treads Wheel > --- UTILITY ---------- Improved Heat Sink Small Storage Unit Force Booster Supersonic Drone Bay > --- WEAPON ----------- EM Pulse Cannon Powered Hammer > --- INVENTORY -------- Wheel Targeting Computer Force Booster Reflective Plating System Shield [Rating: 38] Favorites ----------- Power Light Ion Engine Engine Light Ion Engine Propulsion Medium Treads Treads Medium Treads Wheel Wheel Utility Small Storage Unit Device Supersonic Drone Bay Storage Small Storage Unit Hackware System Shield Weapon Powered Hammer Energy Gun Particle Gun Energy Cannon EM Pulse Cannon Ballistic Gun Assault Rifle Launcher Grenade Launcher Impact Weapon Powered Hammer Build | -11 -10 -10 -10 -9 -8 -7 ------- Run | Yrd Mat Min Exi Min Mat Fac Slots Evolved 6 | . . . . . 4 2 Power 1 | . . . . . . 1 Propulsion 2 | . . . . . 1 1 Utility 2 | . . . . . 2 . Weapon 1 | . . . . . 1 . Parts Attached 37 | 7 6 1 2 . 7 14 Power 6 | 1 1 1 . . 1 2 Engine 6 | 1 1 1 . . 1 2 Core . | . . . . . . . Reactor . | . . . . . . . Propulsion 12 | 2 2 . 1 . 2 5 Treads 4 | . . . . . . 4 Leg . | . . . . . . . Wheel 8 | 2 2 . 1 . 2 1 Hover . | . . . . . . . Flight . | . . . . . . . Utility 8 | 2 . . 1 . 1 4 Device 6 | 1 . . 1 . 1 3 Storage 1 | 1 . . . . . . Processor . | . . . . . . . Hackware 1 | . . . . . . 1 Protection . | . . . . . . . Artifact . | . . . . . . . Weapon 11 | 2 3 . . . 3 3 Energy Gun 5 | 1 2 . . . 1 1 Energy Cannon 2 | . . . . . 2 . Ballistic Gun 1 | 1 . . . . . . Ballistic Cannon . | . . . . . . . Launcher 1 | . 1 . . . . . Special Weapon . | . . . . . . . Impact Weapon 2 | . . . . . . 2 Slashing Weapon . | . . . . . . . Piercing Weapon . | . . . . . . . Special Melee Weapon . | . . . . . . . Unidentified Prototypes 1 | . . . 1 . . . Parts Lost 22 | . . . . . 8 14 Power 4 | . . . . . 2 2 Propulsion 9 | . . . . . 3 6 Utility 3 | . . . . . . 3 Weapon 6 | . . . . . 3 3 Highest Loss Streak 11 | . . . . . 4 11 To Critical Strikes 1 | . . . . . 1 . Average Backups 7 | 3 7 8 7 8 6 7 Power . | . 1 1 1 1 . . Propulsion 2 | 1 3 4 3 3 . 2 Utility 2 | . . 1 1 2 3 3 Weapon . | . 1 2 2 2 1 . Tool/Special . | . . . . . . . Unused Backups 6 | . . . . . 1 5 Power . | . . . . . . . Propulsion 1 | . . . . . . 1 Utility 4 | . . . . . 1 3 Weapon . | . . . . . . . Tool/Special 1 | . . . . . . 1 Average Slot Usage (%) 73 | . 100 100 100 100 67 62 Engine 6 | . 14 14 14 14 4 2 Treads 11 | . . . . . . 19 Wheel 11 | . 28 28 28 28 20 1 Device 16 | . 14 14 14 14 14 17 Storage 9 | . 14 14 14 14 9 6 Hackware 1 | . . . . . . 2 Energy Gun 5 | . 12 14 14 14 8 1 Energy Cannon 2 | . . . . . 5 2 Ballistic Gun 2 | . 6 . 6 14 3 . Launcher 2 | . 9 14 7 . 1 . Impact Weapon 3 | . . . . . . 5 Peak Build Rating 38 | 7 8 8 15 15 21 38 Average Rating 22 | 5 7 8 11 15 18 31 On Entrance 10 | . 7 8 8 15 15 19 Avg Prop Armor Cover (%) 7 | . . . . . . 7 Naked Turns . | . . . . . . . Heaviest Build 24 | 14 16 15 15 14 22 24 Greatest Support 84 | 20 20 20 20 20 30 84 Greatest Overweight (x) 5 | . . . . . 5 2 Average Overweight (x) . | . . . . . . . Largest Inventory Capacity 8 | 8 8 8 8 8 8 8 Average Capacity 7 | 6 8 8 8 8 8 7 Most Carried 8 | 8 8 8 8 8 8 8 Average Carried 7 | 3 7 8 7 8 6 7 Final Capacity 8 | 8 8 8 8 8 8 5 Final Carried 8 | 7 8 8 8 8 8 3 Class Distribution -------------------- 79% | Mutant 16% | Scavenger-Mutant 3% | Scavenger-Skirmisher Dominant Class ---------------- Scavenger-Mutant | -10/Materials Scavenger-Mutant | -10/Mines Scavenger-Mutant | -10/Exiles Mutant | -9/Mines Mutant | -8/Materials Mutant | -7/Factory Resources | -11 -10 -10 -10 -9 -8 -7 ----------- Run | Yrd Mat Min Exi Min Mat Fac Matter Collected 905 | 323 65 60 . . 27 430 Remotely . | . . . . . . . Salvage Created 1202 | 206 197 20 . . 110 669 Parts 67 | 19 16 2 . . 13 17 Haulers Intercepted . | . . . . . . . Recyclers Shooed 1 | . . . . . . 1 Parts Field Recycled . | . . . . . . . Retrieved Matter . | . . . . . . . Parts Self-Destructed . | . . . . . . . Prevented . | . . . . . . . Parts Restored . | . . . . . . . Kills | -11 -10 -10 -10 -9 -8 -7 ------- Run | Yrd Mat Min Exi Min Mat Fac Combat Hostiles Destroyed 22 | . 7 1 . . 9 5 Melee 2 | . . . . . . 2 Guns 6 | . 1 1 . . 4 . AOE 11 | . 6 . . . 5 . Classes Destroyed 9 | 3 3 . . . . 3 Worker 8 | 2 1 . . . . 5 Builder 4 | . . . . . . 4 Tunneler 7 | 4 . . . . . 3 Recycler 3 | 1 . . . . . 2 Mechanic 1 | . . . . . . 1 Watcher 2 | . 1 . . . . 1 Swarmer 10 | . 3 1 . . 6 . Grunt 10 | . 4 . . . 3 3 Programmer 2 | . . . . . . 2 Best Kill Streak 9 | 5 9 1 . . 6 3 Combat Bots Only 6 | . 4 1 . . 6 3 Max Kills in Single Turn 2 | 1 2 1 . . 2 1 Gunslinging . | . . . . . . . Exploded 2 | . 2 . . . 2 . Melee 1 | . . . . . . 1 Uniques/NPCs Destroyed . | . . . . . . . Combat | -11 -10 -10 -10 -9 -8 -7 -------- Run | Yrd Mat Min Exi Min Mat Fac Hostile Shots Fired 393 | . 12 8 . . 113 260 Missed 137 | . 2 3 . . 38 94 Hits 256 | . 10 5 . . 75 166 Projectile 256 | . 10 5 . . 75 166 Critical Strikes 9 | . . . . . 3 6 Damage Taken 2998 | . 107 39 . . 921 1931 Core 950 | . . 13 . . 230 707 Absorbed by Shields . | . . . . . . . Core Remaining (%) 84 | 100 . . . 94 58 . Volleys Fired 73 | 21 8 1 1 . 26 16 Largest 3 | 2 2 1 1 . 3 1 Hottest 188 | 60 95 65 65 . 188 63 Shots Fired 137 | 42 16 1 1 . 61 16 Gun 110 | 42 9 1 1 . 46 11 Cannon 14 | . . . . . 9 5 Launcher 13 | . 7 . . . 6 . Special . | . . . . . . . Kinetic 36 | 21 3 . . . 12 . Thermal 68 | 21 5 1 1 . 40 . Explosive 13 | . 7 . . . 6 . Electromagnetic 20 | . 1 . . . 3 16 Robot Hit Streak 7 | 7 4 1 . . 4 6 Robot Miss Streak 6 | 4 2 . . . 6 2 Penetration Max . | . . . . . . . Secondary Targets 2 | . . . . . 2 . Max Gunslinging Chain 1 | . . . . . 1 . Shots Hit Robots 96 | 24 5 1 . . 22 44 Core Hits 49 | 8 10 1 . . 17 13 Critical Kills 1 | . . . . . . 1 Critical Parts Destroyed 7 | . . . . . . 7 Critical Strikes 8 | . . . . . . 8 Smash 8 | . . . . . . 8 Melee Attacks 40 | . . . . . . 40 Impact 40 | . . . . . . 40 Slashing . | . . . . . . . Piercing . | . . . . . . . Sneak Attacks 8 | . . . . . . 8 Combat Hostiles . | . . . . . . . Follow-up Attacks . | . . . . . . . Damage Inflicted 3766 | 291 410 16 . . 782 2267 Guns 752 | 291 40 16 . . 243 162 Cannons 192 | . . . . . 113 79 Explosions 830 | . 370 . . . 426 34 Melee 1992 | . . . . . . 1992 Ramming . | . . . . . . . Kinetic 181 | 124 27 . . . 30 . Thermal 461 | 167 13 16 . . 231 34 Explosive 796 | . 370 . . . 426 . Electromagnetic 336 | . . . . . 95 241 Impact 1992 | . . . . . . 1992 Slashing . | . . . . . . . Piercing . | . . . . . . . Highest Corruption 5 | . . . . . . 5 Average Corruption 2 | . . . . . . 2 Corruption Purged . | . . . . . . . Corruption Blocked . | . . . . . . . Effects 16 | . . . . . . 16 Message Errors 4 | . . . . . . 4 Matter Fused 6 | . . . . . . 6 Heat Flow Errors 1 | . . . . . . 1 Energy Discharges 2 | . . . . . . 2 Parts Rejected 1 | . . . . . . 1 Data Loss (minor) 1 | . . . . . . 1 Data Loss (major) 1 | . . . . . . 1 Overload Shots . | . . . . . . . Overflow Damage 911 | . 11 . . . 9 891 Projectiles 9 | . . . . . 9 . Explosions 11 | . 11 . . . . . Melee 891 | . . . . . . 891 Knockbacks 11 | . . . . . . 11 Impact 11 | . . . . . . 11 Kinetic . | . . . . . . . Secondary . | . . . . . . . Self-Inflicted Damage 70 | . 23 . . . 38 9 Shots 3 | . 1 . . . 1 1 Rammed . | . . . . . . . Targets Rammed . | . . . . . . . Kicked . | . . . . . . . Crushed . | . . . . . . . Highest Temperature 571 | . 145 24 24 . 571 171 Average Temperature 182 | . 72 13 13 . 227 60 Received Heat Transfer 651 | . 9 . . . 261 381 Effects 10 | . . . . . 10 . Shutdowns 2 | . . . . . 2 . Interference 2 | . . . . . 2 . Matter Decay 3 | . . . . . 3 . Short Circuit 2 | . . . . . 2 . Damage (core) 1 | . . . . . 1 . Siege Activations . | . . . . . . . Martial Activations . | . . . . . . . Shielding Activations . | . . . . . . . Robots Disrupted . | . . . . . . . Combat Hostiles . | . . . . . . . Robots Corrupted 6 | . . . . . . 6 Combat Hostiles 3 | . . . . . . 3 Parts Fried 13 | . . . . . . 13 Impact Corruptions 32 | . . . . . . 32 Robots Melted . | . . . . . . . Combat Hostiles . | . . . . . . . Parts Melted . | . . . . . . . Heat Transferred 967 | 375 37 37 . . 518 . Parts Sabotaged . | . . . . . . . Parts Stolen . | . . . . . . . Parts Stripped . | . . . . . . . Power Chain Reactions 1 | . . . . . . 1 Alert | -11 -10 -10 -10 -9 -8 -7 ------- Run | Yrd Mat Min Exi Min Mat Fac Maximum Alert Level 1 | . 1 . . . . . Low Security (%) 97 | 100 52 100 . 100 100 100 Level 1 2 | . 47 . . . . . Level 2 . | . . . . . . . Level 3 . | . . . . . . . Level 4 . | . . . . . . . Level 5 . | . . . . . . . High Security . | . . . . . . . Max Security . | . . . . . . . Peak Influence 244 | 10 244 109 . . 168 82 Initial 79 | . . 79 . . . 55 Average 30 | 2 129 70 . . 86 12 Influence Increases 1059 | 35 274 30 . . 379 341 Destroy 0b10 Robot/C 440 | . 140 20 . . 180 100 Destroy 0b10 Robot/NC 125 | 35 10 . . . . 80 Destroy Leader 104 | . 32 10 . . 30 32 Successful Hack 22 | . . . . . . 22 Disable Machine 90 | . 60 . . . 15 15 Destroy Structure 68 | . 32 . . . 34 2 Lose Combat Pursuer 210 | . . . . . 120 90 Influence Decreases 1018 | 35 70 205 29 . 257 422 Entered New Map 221 | . . 125 29 . . 67 Time Decay 695 | 35 70 80 . . 177 333 Lost Part 102 | . . . . . 80 22 Squads Dispatched 8 | . 2 . . . 2 4 Investigation 1 | . 1 . . . . . Extermination 3 | . . . . . . 3 Reinforcement 4 | . 1 . . . 2 1 Assault . | . . . . . . . Garrison . | . . . . . . . Intercept . | . . . . . . . Searches Triggered . | . . . . . . . Construction Impeded 1 | . . . . . 1 . Haulers Reinforced . | . . . . . . . Active Scanning Responses . | . . . . . . . Cargo Convoy Interrupts . | . . . . . . . Stealth | -11 -10 -10 -10 -9 -8 -7 --------- Run | Yrd Mat Min Exi Min Mat Fac Distress Signals 4 | . 2 . . . 1 1 Communications Jammed . | . . . . . . . Distress Signals . | . . . . . . . Times Spotted 51 | . 8 6 . . 21 16 Peak Tracking Total 7 | . 4 3 . . 7 5 Tactical Retreats 11 | . . . . . 6 5 Traps | -11 -10 -10 -10 -9 -8 -7 ------- Run | Yrd Mat Min Exi Min Mat Fac Traps Triggered . | . . . . . . . Indirectly . | . . . . . . . Trap Hack Attempts . | . . . . . . . Triggered . | . . . . . . . Disarmed . | . . . . . . . Reprogrammed . | . . . . . . . Reused . | . . . . . . . Traps Extracted . | . . . . . . . Installed . | . . . . . . . Triggered . | . . . . . . . Machines | -11 -10 -10 -10 -9 -8 -7 ---------- Run | Yrd Mat Min Exi Min Mat Fac Machines Disabled 6 | . 4 . . . 1 1 Max in Single Turn 2 | . 2 . . . 1 1 Machines Repaired . | . . . . . . . Machines Dismantled . | . . . . . . . Machines Sabotaged . | . . . . . . . Overloaded Fab Kills . | . . . . . . . Hacking | -11 -10 -10 -10 -9 -8 -7 --------- Run | Yrd Mat Min Exi Min Mat Fac Machines Accessed 7 | . 1 . 4 . . 2 Terminals 3 | . 1 . . . . 2 Fabricators . | . . . . . . . Repair Stations . | . . . . . . . Recycling Units . | . . . . . . . Scanalyzers . | . . . . . . . Garrison Access . | . . . . . . . Total Hacks 55 | . 3 . 49 . . 3 Successful 52 | . 1 . 49 . . 2 Failed 3 | . 2 . . . . 1 Catastrophic 1 | . . . . . . 1 Database Lockouts . | . . . . . . . Manual 5 | . . . 5 . . . Terminals 6 | . 3 . . . . 3 Fabricators . | . . . . . . . Repair Stations . | . . . . . . . Recycling Units . | . . . . . . . Scanalyzers . | . . . . . . . Garrison Access . | . . . . . . . Terminal Hacks 52 | . 1 . 49 . . 2 Record 51 | . 1 . 49 . . 1 Patrol Status 1 | . . . . . . 1 Fabricator Hacks . | . . . . . . . Repair Station Hacks . | . . . . . . . Recycling Unit Hacks . | . . . . . . . Scanalyzer . | . . . . . . . Garrison Access Hacks . | . . . . . . . Unauthorized Hacks . | . . . . . . . Terminals . | . . . . . . . Fabricators . | . . . . . . . Repair Stations . | . . . . . . . Recycling Units . | . . . . . . . Scanalyzers . | . . . . . . . Garrison Access . | . . . . . . . Data Cores Recovered . | . . . . . . . Used . | . . . . . . . Hacking Detections 2 | . 1 . . . . 1 Full Trace Events 1 | . 1 . . . . . Feedback Events . | . . . . . . . Feedback Blocked . | . . . . . . . Robot Schematics Acquired . | . . . . . . . Robots Built . | . . . . . . . Authchips . | . . . . . . . Time . | . . . . . . . Total Robot Build Rating . | . . . . . . . Part Schematics Acquired . | . . . . . . . Parts Built . | . . . . . . . Authchips . | . . . . . . . Time . | . . . . . . . Total Part Build Rating . | . . . . . . . Part Studies Acquired . | . . . . . . . Parts Repaired . | . . . . . . . Time . | . . . . . . . Parts Recycled . | . . . . . . . Recycled Matter . | . . . . . . . Retrieved Matter . | . . . . . . . Retrieved Components . | . . . . . . . Parts Scanalyzed . | . . . . . . . Part Schematics Acquired . | . . . . . . . Parts Damaged . | . . . . . . . Bothacking | -11 -10 -10 -10 -9 -8 -7 ------------ Run | Yrd Mat Min Exi Min Mat Fac Used RIF Installer . | . . . . . . . Robots Hacked . | . . . . . . . Non-combat . | . . . . . . . Combat . | . . . . . . . Robot Hacks Applied . | . . . . . . . Relay Couplers Released . | . . . . . . . Fabnet Peak Effective % . | . . . . . . . Robots Rewired . | . . . . . . . Allies Hacked . | . . . . . . . Hacks Repelled . | . . . . . . . Allies | -11 -10 -10 -10 -9 -8 -7 -------- Run | Yrd Mat Min Exi Min Mat Fac Total Allies . | . . . . . . . Largest Group . | . . . . . . . Highest-Rated Group . | . . . . . . . Highest-Rated Ally . | . . . . . . . Total Orders . | . . . . . . . Ally Attacks . | . . . . . . . Total Damage . | . . . . . . . Kills . | . . . . . . . Allies Corrupted . | . . . . . . . Allies Melted . | . . . . . . . Intel | -11 -10 -10 -10 -9 -8 -7 ------- Run | Yrd Mat Min Exi Min Mat Fac Active Infowar (turns) 597 | 8 195 162 232 . . . Seismic 597 | 8 195 162 232 . . . Robot Analysis Total . | . . . . . . . Derelict Logs Recovered 2 | . . 1 . 1 . . Drone Launches 4 | . . . 1 . 3 . Drone Recoveries 4 | . . . . . 4 . Exploration | -11 -10 -10 -10 -9 -8 -7 ------------- Run | Yrd Mat Min Exi Min Mat Fac Turns Passed 3726 | 187 195 162 442 221 423 2096 Spaces Moved 2884 | 129 138 149 540 277 393 1258 Core 140 | 1 . . . . 1 138 Treads 1101 | . . . . . . 1101 Legs . | . . . . . . . Wheels 1643 | 128 138 149 540 277 392 19 Hover . | . . . . . . . Flight . | . . . . . . . Fastest Speed 50 | 50 80 80 80 80 80 50 Average Speed 109 | 79 80 80 80 80 81 148 Slowest Speed 300 | 80 80 80 80 80 300 160 Overloaded Moves . | . . . . . . . Propulsion Burnouts . | . . . . . . . Robots Hopped . | . . . . . . . Potential Cave-ins . | . . . . . . . Cave-ins Triggered . | . . . . . . . Exploration Rate (%) 37 | 4 34 33 93 50 29 16 Regions Visited 6 Branch Regions 3 Pre-discovered Areas 3 | . . 1 1 1 . . Known Exits Taken . | . . . . . . . Unknown Exits Taken 6 | 1 1 1 1 1 1 . Scrap Searched . | . . . . . . . Spaces Dug . | . . . . . . . Terrain Destroyed 74 | . 31 . . . 41 2 Melee . | . . . . . . . Projectile . | . . . . . . . AOE 74 | . 31 . . . 41 2 Terrain Rammed . | . . . . . . . Walls Destroyed . | . . . . . . . Machines Disabled . | . . . . . . . Actions | -11 -10 -10 -10 -9 -8 -7 --------- Run | Yrd Mat Min Exi Min Mat Fac Total 3240 | 170 204 191 549 276 446 1404 Wait 135 | . 38 39 . . . 58 Move 2878 | 128 137 148 539 276 392 1258 Hop . | . . . . . . . Pick Up 46 | 14 6 1 3 . 11 11 Fast Attach 1 | . . . . . . 1 Attach 31 | 7 1 . 1 . 10 12 Detach 3 | . . . . . 1 2 Swap 17 | . 9 1 2 . 2 3 Drop 16 | . 5 1 3 . 4 3 Fire 73 | 21 8 1 1 . 26 16 Melee 40 | . . . . . . 40 Ram . | . . . . . . . Kick . | . . . . . . . Crush . | . . . . . . . Escape Stasis . | . . . . . . . Rewire . | . . . . . . . Trap . | . . . . . . . Miscellaneous . | . . . . . . . Route ------- -11/Scrapyard -10/Materials -10/Mines (discovered 2 exits: [*Mat] / *Exi) -10/Exiles (discovered 2 exits: [*Min x2]) -9/Mines -8/Materials -7/Factory History --------- Turn | Location | Event 12 | -11/Scrapyard | Discovered new exit (range 16) 188 | -11/Scrapyard | Entered Materials 299 | -10/Materials | Met 8R-AWN 371 | -10/Materials | Discovered new exit (range 9) 383 | -10/Materials | Entered Mines 384 | -10/Mines | Followed 8R-AWN into the Mines 496 | -10/Mines | Discovered new exit (range 9) 503 | -10/Mines | Learned location of Zion (-7) 538 | -10/Mines | Build established: Scavenger-Mutant 542 | -10/Mines | Discovered new exit (range 5) 545 | -10/Mines | Entered Exiles 564 | -10/Exiles | Discovered new exit (range 15) 578 | -10/Exiles | Welcomed by 8R-AWN 596 | -10/Exiles | Met EX-HEX 627 | -10/Exiles | Met EX-BIN 637 | -10/Exiles | Aligned with FarCom system 638 | -10/Exiles | Given EX-Vault access code 769 | -10/Exiles | Opened EX-Vault 772 | -10/Exiles | Found Prototype Device 777 | -10/Exiles | Identified Supersonic Drone Bay 802 | -10/Exiles | Warned to stay clear of 0b10 Research branches 826 | -10/Exiles | Met EX-DEC 854 | -10/Exiles | Visited The Gauntlet 974 | -10/Exiles | Discovered new exit (range 14) 987 | -10/Exiles | Left Exiles lab with Supersonic Drone Bay 987 | -10/Exiles | Entered Mines 987 | -9/Mines | Accompanied by 1 ally 1011 | -9/Mines | Discovered new exit (range 8) 1016 | -9/Mines | Met a Derelict bent on vengeance 1072 | -9/Mines | Build established: Mutant 1093 | -9/Mines | A weapon hastily lodged in a ceiling crevice suddenly fell to the ground 1208 | -9/Mines | Entered Materials 1208 | -8/Materials | Accompanied by 1 ally 1208 | -8/Materials | Evolved 4 slots: Propulsion x1, Utility x2, Weapon x1 1355 | -8/Materials | Lost 4 parts (1p3n) 1628 | -8/Materials | Discovered new exit (range 4) 1631 | -8/Materials | Entered Factory 1631 | -7/Factory | Evolved 2 slots: Power x1, Propulsion x1 3610 | -7/Factory | Core integrity fell below 50% 3657 | -7/Factory | Core integrity fell below 20% 3678 | -7/Factory | Lost 11 parts (1p5n3u2w) 3727 | -7/Factory | Destroyed by P-60 Hacker with Shock Rifle Last Messages --------------- Destroyed Lgt. Ion Engine. Destroyed Unknown Wheel. R-06 Scavenger system corrupted by crushing effect. R-06 Scavenger destroyed. Acquired 20 matter. Wheel destroyed. Powered Hammer destroyed. Acquired Adv. Weight Redist. System. Wheel destroyed. Dropped Targeting Computer. Acquired Powered Hammer. P-60 Hacker knocked back. System corrupted: Matter fused (-9). Destroyed Gravmag System. P-60 Hacker system corrupted by crushing effect. P-60 Hacker knocked back. P-60 Hacker misfires. System corrupted: Force Booster rejected. P-60 Hacker knocked back. Map ----- +----------------------------------------------------+ | # #???????????# ## """ ####### | | # #???????????############### ## """"" # ! | | # +?????????????????????????# ## """"" # | | # #?????????????????????????# ## # """ | | # #?????????????????????????# ## """ # """ | | # #?????????????????????????# ## """"" # """ | | # ??????????????????????????# ## """"" # | | # ??????????????????????????# ## # """ | | ? ??????????????????????????#^ ^ ## """ # """ | | ? ??????????????????????????# ## """"" # """ | | ? ??????????????????????????# % ## """"" # | | ? ??????????????????????????# ## # """ | | # #?????????????????????????# ## """ # """ | | #?????????????????????????# ## """"" # """ | | #?????????????????????????# ## """"" # | | #?????????????????????????# ## % # | | # #?????????????????????????# #####+######+### | | ????????????????????????????# % | | ????????????????????????????# | | ????????????###?????????????# | | ???????????? #?????######### | | ????????????# #?????# # | | ????????????# #?????# """ ###################### | | ????????????# #?????# """p #???????# # | | ????????????# #?????# """ #???????# # | | ############# ####### @ #???????# # | | # """ #???????# # | | # """ #???????# !!! + | | # """ #???????# ! # | | + ! #???????# !! # | | # """ #???????# # | | # """ #???????# # | | # """ ! #???????# # | | ##################### #???????# # | | ????????????????????# """ #???????# # | | ????????????????????# """ #???????############## | | ????????????????????# """ #????????????????????? | | ????????????????????# =#????????????????????? | | ????????????????????#########????????????????????? | | ?????????????????????????????????????????????????? | | ?????????????????????????????????????????????????? | | ?????????????????????????????????????????????????? | | ?????????????????????????????????????????????????? | | ?????????????????????????????????????????????????? | | ?????????????????????????????????????????????????? | | ?????????????????????????????????????????????????? | | ?????????????????????????????????????????????????? | | ?????????????????????????????????????????????????? | | ?????????????????????????????????????????????????? | | ?????????????????????????????????????????????????? | +----------------------------------------------------+ Best States ------------- Heat Dissipation 48 Energy Generation 10 Energy Capacity 250 Matter Stores 300 Matter Capacity 300 Sight Range 16 Terrain Scan Density 10 Additional Mass Support 9 Evasion (%) 50 Recoil Reduction 3 Force Boost 20 Defensive Hacking 10 Item Schematics ----------------- None Robot Schematics ------------------ None Fabricated ------------ Nothing Repaired ---------- Nothing Studied --------- None Alien Tech Used ----------------- None Achievements -------------- Deductive Reasoning Power Corrupts Sixth Sense Challenges ------------ None Game ------ Seed SuperchargedGunChronowheel Manual? 0 Play Time 00:50:13 Cumulative 10.0 hours Start 2025.12.01 @ 18:50:18 End 2025.12.01 @ 19:38:40 Sessions 1 Manual Loads 0 Difficulty Rogue Special Mode None Game No. 22 Rogue 22 Adventurer 0 Explorer 0 Win Type - Total 0 Types 0/0/0/0/0/0/0/0/0/0 Lore% 11 Gallery% 12 Achievement% 12 Wizard Run 0 Options --------- Layout 1 ASCII 0 Keyboard 0 Movement Mouse Keybinds 0 Fullscreen 1 Font 24/Smallcaps Map View 50x35 Zoom Use 0% Tactical HUD 0 Map Filters NONE Filters NONE Steam 1 RUN: 61b69a61-dc37-4566-a037-45a1c514dbc0